bitfinex/quotes_ETHUSD_20250807
["timestamp","ask_amount","ask_price","bid_price","bid_amount"]
[1754548593796,16.77732225,3695.0,3694.9,0.9202]
[1754548593981,12.62532225,3695.0,3694.9,0.9202]
[1754548594181,16.77732225,3695.0,3694.9,0.9202]
[1754548594415,16.77732225,3695.0,3694.9,0.4711]
[1754548594720,7.2872,3695.0,3694.9,0.4711]
[1754548595825,12.49192232,3695.0,3694.9,0.001]
[1754548596005,12.92892232,3695.0,3694.9,0.001]
[1754548596208,13.40002232,3695.0,3694.9,0.001]
[1754548596816,6.10466238,3695.0,3694.9,0.001]
[1754548597033,12.96302232,3695.0,3694.9,0.4711]
[1754548599032,9.78556238,3695.0,3694.9,0.4711]
[1754548599929,5.63356238,3695.0,3694.9,0.4711]
[1754548600126,9.78456238,3695.0,3694.9,0.4711]
[1754548600626,9.23456238,3695.0,3694.9,0.4711]
[1754548601749,9.23456238,3695.0,3694.9,0.001]
[1754548601900,9.67156238,3695.0,3694.9,0.001]
[1754548602236,12.37792232,3695.0,3694.9,0.001]
[1754548604046,9.67156238,3695.0,3694.9,0.001]
[1754548604333,9.23456238,3695.0,3694.9,0.4711]
[1754548604837,5.08356238,3695.0,3694.9,0.4711]
[1754548605027,9.23456238,3695.0,3694.9,0.4711]
[1754548605226,5.08356238,3695.0,3694.9,0.4711]
[1754548605436,9.23456238,3695.0,3694.9,0.4711]
[1754548605839,3.1352,3695.0,3694.9,0.4711]
[1754548606011,3.1352,3695.0,3694.9,0.9202]
[1754548606197,7.2852,3695.0,3694.9,0.9202]
[1754548607314,7.2852,3695.0,3694.9,0.4711]
[1754548609434,10.42855994,3695.0,3694.9,0.001]
[1754548609749,10.03409421,3695.0,3694.9,0.001]
[1754548609898,9.59709421,3695.0,3694.9,0.4713]
[1754548610236,12.30345415,3695.0,3694.9,0.4713]
[1754548610909,9.59709421,3695.0,3694.9,0.4713]
[1754548611315,12.30345415,3695.0,3694.9,0.4713]
[1754548611856,12.74825415,3695.0,3694.9,0.001]
[1754548613926,13.29825415,3695.0,3694.9,0.001]
[1754548614152,14.21875415,3695.0,3694.9,0.001]
[1754548614458,13.76855415,3695.0,3694.9,0.001]
[1754548618623,13.32275415,3695.0,3694.9,0.4713]
[1754548620607,4.7545,3695.0,3694.9,0.4713]
[1754548620812,4.2842,3695.0,3694.9,0.9033]
[1754548621037,7.2842,3695.0,3694.9,0.9033]
[1754548621814,7.2842,3695.0,3694.9,0.4713]
[1754548622326,7.2842,3695.0,3694.9,0.9033]
[1754548622534,7.148,3695.0,3694.9,0.9033]
[1754548623254,7.148,3695.0,3694.9,0.4713]
[1754548623661,7.148,3695.0,3694.9,0.9033]
[1754548626251,7.148,3695.0,3694.9,0.4713]
[1754548628060,7.148,3695.0,3694.9,0.001]
[1754548628266,7.148,3695.0,3694.9,0.4713]
[1754548629057,3.0,3695.0,3694.9,0.4713]
[1754548629258,7.147,3695.0,3694.9,0.4713]
[1754548632369,7.147,3695.0,3694.9,0.001]
[1754548632370,19.07444896,3695.0,3694.9,0.001]
[1754548632563,19.07444896,3695.0,3694.9,0.4713]
[1754548632564,9.13952671,3695.0,3694.9,0.4713]
[1754548632754,9.95319071,3695.0,3694.9,0.4713]
[1754548632955,9.13952671,3695.0,3694.9,0.4713]
[1754548633155,12.29068665,3695.0,3694.9,0.001]
[1754548633802,12.76098665,3695.0,3694.9,0.001]
[1754548634103,13.76118665,3695.0,3694.9,0.001]
[1754548639299,13.31098665,3695.0,3694.9,0.001]
[1754548639501,12.86618665,3695.0,3694.9,0.001]
[1754548639999,5.46282671,3695.0,3694.9,0.001]
[1754548640208,5.46282671,3695.0,3694.9,0.4691]
[1754548640209,7.6163,3695.0,3694.9,0.4691]
[1754548641065,0.4703,3695.0,3694.9,3.61503319]
[1754548641297,4.6163,3695.0,3694.9,0.9086]
[1754548641498,7.146,3695.0,3694.9,0.9086]
[1754548644000,7.145,3695.0,3694.9,0.9086]
[1754548645304,7.145,3695.0,3694.9,0.4691]
[1754548647272,3.0,3695.0,3694.9,3.17553319]
[1754548647485,7.145,3695.0,3694.9,0.4691]
[1754548651403,7.145,3695.0,3694.9,3.17553319]
[1754548651404,7.144,3695.0,3694.9,3.17553319]
[1754548651721,0.002,3695.3,3695.2,2.70621346]
[1754548651928,4.146,3695.3,3695.2,2.70621346]
[1754548652223,4.146,3695.3,3695.2,3.74901346]
[1754548652578,0.002,3695.3,3695.2,3.74901346]
[1754548654085,0.002,3695.3,3695.2,3.30951346]
[1754548654627,0.002,3695.3,3695.2,3.74901346]
[1754548658198,0.002,3695.3,3695.2,1.0428]
[1754548658723,0.002,3695.3,3695.2,0.1352]
[1754548658923,1.80721223,3695.3,3694.9,0.001]
[1754548659127,0.4416,3695.2,3694.9,0.001]
[1754548659285,4.142,3695.1,3694.9,0.001]
[1754548659487,4.5836,3695.1,3694.9,0.001]
[1754548659693,0.4416,3695.0,3694.9,0.001]
[1754548660484,4.142,3695.1,3694.9,2.70743319]
[1754548660667,4.142,3695.1,3695.0,0.4681]
[1754548661161,4.142,3695.1,3695.0,3.17445994]
[1754548663333,0.1352,3695.2,3695.1,2.7062867]
[1754548663539,4.2772,3695.2,3695.1,3.1743867]
[1754548663761,4.2772,3695.2,3695.1,0.4681]
[1754548665167,4.2772,3695.2,3695.0,2.70635444]
[1754548665374,4.7188,3695.2,3695.0,0.4681]
[1754548665570,4.7188,3695.2,3695.0,3.17443395]
[1754548665894,4.142,3695.1,3695.0,3.17443395]
[1754548668314,4.142,3695.1,3695.0,0.4681]
[1754548668615,4.5836,3695.1,3694.9,0.001]
[1754548668959,4.5836,3695.1,3694.9,2.70743298]
[1754548669579,0.4416,3695.0,3694.9,2.70743298]
[1754548670602,4.5826,3695.0,3694.9,2.70743298]
[1754548670789,0.4416,3695.0,3694.9,2.70743298]
[1754548670977,4.5826,3695.0,3694.9,2.70743298]
[1754548672183,4.5826,3695.0,3694.9,3.19113298]
[1754548672873,4.141,3695.0,3694.9,3.19113298]
[1754548673918,4.141,3695.0,3694.9,0.001]
[1754548674213,5.09044,3695.0,3694.9,0.001]
[1754548674906,4.6152,3695.0,3694.9,0.001]
[1754548676992,5.0653,3695.0,3694.9,0.001]
[1754548677312,6.014142,3695.0,3694.9,0.001]
[1754548679793,0.948842,3695.0,3694.9,2.70743319]
[1754548680007,0.1352,3695.0,3694.9,0.4847]
[1754548680227,4.2752,3695.0,3694.9,0.4847]
[1754548681097,4.14,3695.0,3694.9,3.62093319]
[1754548681726,4.14,3695.0,3694.9,3.19113319]
[1754548682630,4.14,3695.0,3694.9,0.4847]
[1754548682933,4.14,3695.0,3694.9,3.19113319]
[1754548684531,0.1352,3695.2,3694.9,3.19113319]
[1754548684727,4.6132,3695.1,3694.9,3.19113319]
[1754548685892,4.6132,3695.1,3695.0,0.4837]
[1754548687143,4.139,3695.1,3695.0,3.19005994]
[1754548687299,0.1352,3695.2,3695.1,2.7062867]
[1754548687500,0.1352,3695.2,3695.1,3.1899867]
[1754548687707,0.002,3695.3,3695.2,2.70621346]
[1754548688025,4.141,3695.3,3695.2,3.61971346]
[1754548688228,0.002,3695.3,3695.2,3.61971346]
[1754548688544,0.002,3695.3,3695.2,3.75491346]
[1754548693027,0.002,3695.3,3695.2,3.32511346]
[1754548695338,0.4762,3695.3,3695.2,0.1352]
[1754548695641,0.9263,3695.3,3695.1,2.70628211]
[1754548695839,0.002,3695.3,3695.2,2.70621346]
[1754548696640,0.002,3695.3,3695.2,3.18991346]
[1754548697003,0.002,3695.3,3695.2,3.61971346]
[1754548697574,0.002,3695.3,3695.2,3.18991346]
[1754548697907,0.002,3695.3,3695.2,3.61971346]
[1754548698239,0.002,3695.3,3695.2,3.75491346]
[1754548698432,0.002,3695.3,3695.2,3.32511346]
[1754548701109,0.002,3695.3,3695.2,3.82197559]
[1754548701331,0.002,3695.3,3695.2,3.79491346]
[1754548702166,0.002,3695.3,3695.2,7.93091346]
[1754548702669,0.002,3695.7,3695.6,2.70592055]
[1754548703044,0.002,3695.7,3695.6,7.78672055]
[1754548703248,0.002,3695.7,3695.6,7.92192055]
[1754548709335,1e-08,3695.7,3695.6,7.92192055]
[1754548714547,1e-08,3695.7,3695.6,7.45212055]
[1754548716196,1e-08,3695.7,3695.6,7.92192055]
[1754548718876,0.002,3696.5,3696.4,2.70533492]
[1754548719080,0.002,3696.5,3696.4,6.83833492]
[1754548719262,0.002,3696.5,3696.4,6.97353492]
[1754548719468,0.002,3696.5,3696.4,7.44853492]
[1754548724181,0.002,3696.5,3696.4,6.97353492]
[1754548724580,0.4435,3696.5,3696.4,6.97353492]
[1754548724795,0.002,3696.5,3696.4,6.97353492]
[1754548725000,0.4435,3696.5,3696.4,6.97353492]
[1754548731909,0.4435,3696.5,3696.4,7.45823492]
[1754548732883,0.002,3696.5,3696.4,7.45823492]
[1754548737417,0.9401,3696.5,3696.4,2.84053492]
[1754548740623,1.2969338,3696.5,3696.1,4.13]
[1754548740939,0.9381,3696.4,3696.3,2.70537368]
[1754548741505,0.9381,3696.4,3696.2,2.70543559]
[1754548741702,0.9381,3696.3,3696.2,2.70543559]
[1754548742527,0.4692,3696.3,3696.2,2.70543559]
[1754548742725,0.9381,3696.3,3696.2,2.70543559]
[1754548743619,0.9381,3696.3,3696.1,2.84073875]
[1754548743934,1.0789056,3696.3,3696.2,2.7054813]
[1754548744242,1.5478056,3696.3,3696.2,2.7054813]
[1754548744444,1.5478056,3696.3,3696.0,0.1352]
[1754548744445,2.0170056,3696.3,3696.0,2.84077385]
[1754548744628,0.9381,3696.2,3695.6,0.001]
[1754548744830,9.62532225,3696.0,3695.6,0.001]
[1754548745245,9.62532225,3696.0,3695.6,2.70691044]
[1754548745439,0.9381,3695.9,3695.7,2.70582033]
[1754548745610,0.9381,3695.9,3695.6,0.001]
[1754548745611,9.62532225,3696.0,3695.8,2.70577195]
[1754548745810,11.13375543,3696.0,3695.8,2.70577195]
[1754548746010,11.13375543,3696.0,3695.6,2.70691223]
[1754548746251,0.9381,3695.9,3695.6,2.70691223]
[1754548746543,0.9381,3695.8,3695.7,2.70584493]
[1754548746861,1.0733,3695.8,3695.7,2.70584733]
[1754548747561,0.6044,3695.8,3695.7,2.70584733]
[1754548749961,0.6044,3695.8,3695.7,2.70684733]
[1754548751743,0.6044,3695.8,3695.7,3.19154733]
[1754548751744,0.1352,3695.8,3695.7,3.19154733]
[1754548752049,0.815274,3696.5,3696.0,2.7056277]
[1754548752257,0.1372,3696.5,3696.4,2.70533492]
[1754548752410,4.2662,3696.5,3696.4,3.19003492]
[1754548753308,0.1372,3696.5,3696.4,3.19003492]
[1754548753546,4.2662,3696.5,3696.4,3.19003492]
[1754548753725,4.2662,3696.5,3696.4,0.4847]
[1754548753924,4.2662,3696.5,3696.0,3.31006974]
[1754548753925,14.22552225,3696.5,3696.2,2.70547618]
[1754548754149,14.22552225,3696.5,3696.0,0.1352]
[1754548754150,5.0671,3696.4,3696.1,2.70555103]
[1754548754449,0.9381,3696.3,3696.1,2.70555103]
[1754548754658,4.129,3696.4,3695.7,4.13]
[1754548754659,10.42822225,3696.2,3695.7,0.001]
[1754548754818,4.129,3696.1,3695.7,2.70683769]
[1754548755018,0.4692,3696.0,3695.8,2.70577412]
[1754548755419,4.129,3696.1,3695.9,2.70570091]
[1754548755614,4.129,3696.1,3696.0,3.1903277]
[1754548756418,4.5982,3696.1,3696.0,3.1903277]
[1754548757553,4.129,3696.1,3696.0,3.1903277]
[1754548758956,0.6044,3696.4,3696.0,3.1903277]
[1754548759133,0.6044,3696.4,3696.3,2.70540811]
[1754548759335,4.7324,3696.4,3696.2,2.70546943]
[1754548759541,4.2632,3696.4,3696.3,2.70540811]
[1754548759842,4.7324,3696.4,3696.2,2.70546862]
[1754548760159,0.4663,3696.3,3696.2,2.70546862]
[1754548760718,4.2632,3696.4,3696.3,2.70540811]
[1754548761467,4.7295,3696.4,3696.3,2.70540811]
[1754548761667,4.7295,3696.4,3696.2,3.20396902]
[1754548761834,0.4663,3696.3,3696.2,2.70546902]
[1754548762643,1.93431223,3696.3,3696.1,2.70553264]
[1754548762952,0.4663,3696.2,3695.9,0.1352]
[1754548763146,3.0,3695.9,3695.7,0.001]
[1754548763353,4.2632,3695.8,3695.7,0.001]
[1754548763662,5.186,3695.8,3695.7,0.001]
[1754548765741,4.7295,3695.8,3695.7,0.001]
[1754548766355,5.186,3695.8,3695.7,0.001]
[1754548767038,4.7295,3695.8,3695.7,0.001]
[1754548768372,4.2632,3695.8,3695.7,0.4995]
[1754548770250,4.2632,3695.8,3695.7,3.20534733]
[1754548770466,4.2632,3695.8,3695.7,0.4995]
[1754548771381,4.128,3695.8,3695.7,0.4995]
[1754548772074,4.5943,3695.8,3695.7,0.4995]
[1754548772584,4.128,3695.8,3695.7,0.4995]
[1754548775188,4.128,3695.8,3695.7,0.001]
[1754548775383,4.128,3695.8,3695.7,0.4995]
[1754548776924,4.128,3695.8,3695.7,3.20534733]
[1754548777601,0.1352,3695.9,3695.7,3.20534733]
[1754548777807,0.1352,3695.9,3695.8,0.4985]
[1754548777969,4.2622,3695.9,3695.8,0.4985]
[1754548778170,0.1352,3695.9,3695.8,0.4985]
[1754548778390,7.2622,3695.9,3695.8,0.4985]
[1754548779006,0.002,3696.1,3695.8,3.20427412]
[1754548779313,0.002,3696.1,3696.0,2.7056277]
[1754548779618,4.129,3696.1,3696.0,2.7056277]
[1754548779969,0.002,3696.1,3696.0,3.2041277]
[1754548780169,4.129,3696.1,3696.0,3.6499277]
[1754548780399,4.129,3696.1,3696.0,3.2041277]
[1754548782107,4.129,3696.1,3696.0,3.3393277]
[1754548782712,4.129,3696.1,3696.0,3.7851277]
[1754548783707,0.002,3696.1,3696.0,3.7851277]
[1754548786505,0.002,3696.1,3696.0,3.3393277]
[1754548787880,0.4683,3696.1,3696.0,2.8408277]
[1754548791519,0.4683,3696.1,3696.0,3.2993277]
[1754548792523,0.4635,3696.1,3696.0,2.8408277]
[1754548794017,0.4635,3696.1,3695.9,2.70569711]
[1754548794306,5.1808,3696.0,3695.7,0.001]
[1754548794688,0.4591,3695.9,3695.7,0.001]
[1754548794882,0.9206,3695.9,3695.7,0.001]
[1754548795120,0.4591,3695.8,3695.7,0.001]
[1754548795417,0.4615,3695.8,3695.7,2.70684733]
[1754548796310,0.4615,3695.8,3695.7,0.001]
[1754548799951,0.4615,3695.8,3695.7,2.70684733]
[1754548800308,0.4615,3695.8,3695.7,0.001]
[1754548801034,0.4615,3695.8,3695.7,2.70684733]
[1754548803354,0.4615,3695.8,3695.7,0.001]
[1754548804412,2.52309223,3695.8,3695.7,0.001]
[1754548805434,1.60249223,3695.8,3695.7,0.001]
[1754548805636,0.1352,3695.8,3695.7,3.16534733]
[1754548805841,4.2592,3695.8,3695.7,3.16534733]
[1754548806575,0.1352,3695.8,3695.7,3.16534733]
[1754548806755,4.2592,3695.8,3695.7,3.16534733]
[1754548807320,0.4635,3696.1,3695.8,2.70577362]
[1754548807519,4.7207,3696.0,3695.8,3.16427362]
[1754548807734,4.2592,3696.0,3695.9,3.16420091]
[1754548808126,4.2592,3696.0,3695.9,0.4585]
[1754548808473,4.7207,3696.0,3695.7,0.001]
[1754548808768,0.4615,3695.9,3695.7,2.70684302]
[1754548809067,4.5855,3695.8,3695.7,2.70684302]
[1754548809270,4.5855,3695.8,3695.7,3.16534302]
[1754548809624,4.124,3695.8,3695.7,3.16534302]
[1754548810320,0.1352,3696.0,3695.9,2.70570091]
[1754548810520,4.2592,3696.0,3695.9,2.70570091]
[1754548810748,4.2592,3696.0,3695.9,3.16420091]
[1754548812446,4.2592,3696.0,3695.9,2.70570091]
[1754548812758,4.2592,3696.0,3695.9,3.16420091]
[1754548812959,4.2592,3696.0,3695.9,2.70670091]
[1754548812960,0.1352,3696.0,3695.9,2.70670091]
[1754548813163,0.1352,3696.0,3695.9,3.16520091]
[1754548813164,4.2582,3696.0,3695.9,3.16520091]
[1754548813371,0.1352,3696.0,3695.9,3.62800091]
[1754548813541,4.123,3696.0,3695.9,3.62800091]
[1754548813742,4.123,3696.0,3695.9,3.76320091]
[1754548814072,4.123,3696.0,3695.9,3.30040091]
[1754548817984,0.002,3696.1,3696.0,2.7056277]
[1754548818283,4.125,3696.1,3696.0,3.1641277]
[1754548819978,4.124,3696.1,3696.0,3.6159277]
[1754548820303,0.002,3696.1,3696.0,3.6159277]
[1754548822188,0.002,3696.1,3696.0,3.7511277]
[1754548826869,0.002,3696.1,3696.0,3.2993277]
[1754548830599,0.002,3696.1,3696.0,3.3351277]
[1754548831621,0.002,3696.1,3696.0,2.8408277]
[1754548831907,0.4385,3696.1,3696.0,2.8408277]
[1754548832475,0.4385,3696.1,3696.0,3.3351277]
[1754548832669,0.002,3696.1,3696.0,3.3351277]
[1754548833785,0.002,3696.1,3696.0,3.7869277]
[1754548835108,0.002,3696.1,3696.0,2.8408277]
[1754548835315,0.4385,3696.1,3696.0,2.8408277]
[1754548835679,0.4385,3696.1,3696.0,3.3351277]
[1754548836512,0.002,3696.1,3696.0,3.3351277]
[1754548837423,0.002,3696.1,3696.0,2.8408277]
[1754548837593,0.4385,3696.1,3696.0,2.8408277]
[1754548838093,0.002,3696.1,3696.0,3.3351277]
[1754548838726,0.9266,3696.1,3695.9,0.001]
[1754548838880,0.002,3696.1,3696.0,2.7056277]
[1754548839511,0.002,3696.1,3696.0,3.1999277]
[1754548840517,0.002,3696.1,3696.0,3.67878397]
[1754548840711,0.002,3696.1,3696.0,3.6517277]
[1754548841225,0.002,3696.1,3696.0,7.7717277]
[1754548842584,1e-08,3696.1,3696.0,7.7717277]
[1754548853608,1e-08,3696.1,3696.0,7.3199277]
[1754548854740,1e-08,3696.1,3696.0,7.7789277]
[1754548856347,1e-08,3697.1,3697.0,2.70489586]
[1754548856547,1e-08,3697.1,3697.0,16.31301811]
[1754548856737,1e-08,3697.1,3697.0,17.37971811]
[1754548856935,1e-08,3697.1,3697.0,16.92071811]
[1754548857134,1e-08,3697.1,3697.0,6.95809586]
[1754548857439,0.45520001,3697.1,3697.0,6.95809586]
[1754548857639,1e-08,3697.1,3697.0,7.43059586]
[1754548859575,0.45520001,3697.1,3697.0,6.95809586]
[1754548860763,1e-08,3697.1,3697.0,7.43059586]
[1754548862535,1e-08,3697.1,3697.0,16.92071811]
[1754548862960,1e-08,3697.1,3697.0,7.43059586]
[1754548863880,0.45520001,3697.1,3697.0,6.95609586]
[1754548865582,0.94020001,3697.1,3697.0,6.95609586]
[1754548867069,0.45520001,3697.1,3697.0,6.95609586]
[1754548867849,0.94020001,3697.1,3697.0,6.95609586]
[1754548868249,0.45520001,3697.1,3697.0,6.95609586]
[1754548870090,0.94020001,3697.1,3697.0,6.95609586]
[1754548871916,0.94020001,3697.1,3697.0,2.84009586]
[1754548876434,0.94020001,3697.1,3697.0,2.70489586]
[1754548877335,0.45520001,3697.1,3697.0,2.70489586]
[1754548879196,0.45520001,3697.1,3697.0,2.70589586]
[1754548879601,0.94020001,3697.1,3697.0,2.70589586]
[1754548879927,0.45520001,3697.1,3697.0,2.70589586]
[1754548885051,0.45520001,3697.1,3697.0,5.70589586]
[1754548886124,1e-08,3697.1,3697.0,6.19489586]
[1754548887440,1e-08,3697.1,3697.0,6.33009586]
[1754548887754,1e-08,3697.1,3697.0,3.33009586]
[1754548897581,0.46650001,3697.1,3697.0,3.33009586]
[1754548897750,0.46650001,3697.1,3697.0,2.84109586]
[1754548897949,0.95900001,3697.1,3697.0,2.84109586]
[1754548898175,0.95900001,3697.1,3697.0,2.70589586]
[1754548898481,0.46650001,3697.1,3697.0,2.70589586]
[1754548900045,0.46650001,3697.1,3697.0,3.19489586]
[1754548900792,1e-08,3697.1,3697.0,3.19489586]
[1754548900957,0.46650001,3697.1,3697.0,3.19489586]
[1754548901288,1e-08,3697.1,3697.0,3.19489586]
[1754548901646,0.46650001,3697.1,3697.0,3.19489586]
[1754548902886,1e-08,3697.1,3697.0,3.19489586]
[1754548903787,0.46650001,3697.1,3697.0,2.70589586]
[1754548904764,1e-08,3697.1,3697.0,3.19489586]
[1754548905766,1e-08,3697.1,3697.0,3.33009586]
[1754548909493,1e-08,3697.1,3697.0,3.79389586]
[1754548912786,1e-08,3697.1,3697.0,3.82094481]
[1754548913812,1e-08,3697.1,3697.0,3.79389586]
[1754548914009,1e-08,3697.1,3697.0,13.27281811]
[1754548920720,1e-08,3697.1,3697.0,12.82021811]
[1754548921215,0.24326465,3697.9,3697.8,2.70431067]
[1754548921716,3.0,3698.7,3697.7,2.83956119]
[1754548921921,3.0,3698.7,3698.0,2.7041084]
[1754548922079,3.0,3698.7,3698.1,2.70409129]
[1754548923114,3.0,3698.9,3697.6,4.111]
[1754548923318,0.4491,3698.4,3698.1,0.4739]
[1754548924016,0.4491,3698.7,3698.3,2.70394505]
[1754548924218,0.5843,3698.7,3698.6,2.70372573]
[1754548924426,0.4491,3698.7,3698.6,2.70372573]
[1754548924631,0.1352,3699.0,3698.6,3.17762573]
[1754548924918,0.4491,3698.9,3698.8,2.70351676]
[1754548925504,0.4491,3698.9,3698.8,2.83871676]
[1754548926029,0.4491,3698.9,3698.8,0.1352]
[1754548926621,0.7298,3698.9,3698.4,2.70381255]
[1754548926825,0.2807,3698.8,3698.4,2.83901255]
[1754548927034,0.7298,3698.8,3698.4,2.83901255]
[1754548927210,0.50818,3698.9,3698.4,2.83901255]
[1754548927412,0.7298,3698.7,3698.4,2.83901255]
[1754548927610,0.4491,3698.6,3698.4,0.1352]
[1754548927809,0.4491,3698.5,3698.4,2.70387194]
[1754548929152,0.1352,3698.6,3698.5,2.70379883]
[1754548929305,0.4159,3699.0,3698.5,2.70379883]
[1754548929511,0.4491,3698.6,3698.5,2.70379883]
[1754548930806,0.1352,3699.0,3698.6,2.70370718]
[1754548931131,0.4491,3698.9,3698.6,3.17760718]
[1754548931336,0.1352,3699.0,3698.6,2.70370718]
[1754548931552,0.812677,3699.1,3698.7,3.17754045]
[1754548931836,0.4491,3699.0,3698.7,3.17754045]
[1754548932547,0.7298,3698.9,3698.6,0.1352]
[1754548932844,0.2807,3698.9,3698.6,0.1352]
[1754548933057,0.4491,3698.8,3698.2,4.11]
[1754548933347,0.7298,3698.8,3698.5,2.83897275]
[1754548933523,0.4491,3698.8,3698.5,2.83897275]
[1754548933720,1.093376,3699.0,3698.5,0.1352]
[1754548934049,0.4491,3698.7,3698.0,4.109]
[1754548934250,10.64731448,3698.6,3697.9,2.7042336]
[1754548934469,10.64731448,3698.6,3698.0,0.1352]
[1754548934622,0.7298,3698.5,3698.0,0.1352]
[1754548934824,0.7298,3698.5,3697.6,7.28728809]
[1754548934825,0.1352,3698.2,3697.6,0.6091]
[1754548935237,0.4491,3698.1,3697.7,2.70437995]
[1754548935448,0.4159,3698.2,3697.7,2.70437995]
[1754548935621,1.56003405,3698.2,3697.7,2.70437995]
[1754548935821,0.7298,3698.1,3697.7,2.70437995]
[1754548936070,0.7298,3698.1,3697.6,0.1352]
[1754548936270,0.7298,3698.0,3697.6,0.1352]
[1754548936427,0.7298,3698.0,3697.2,4.5819]
[1754548936630,0.5843,3697.9,3697.3,0.1352]
[1754548936950,0.5843,3697.9,3697.4,2.70453418]
[1754548937125,0.948075,3697.9,3697.5,2.70450792]
[1754548937321,0.4491,3697.8,3697.5,2.70450792]
[1754548937525,0.4491,3697.8,3697.6,2.7044563]
[1754548938564,0.4491,3697.8,3697.5,2.70452694]
[1754548938751,0.4491,3697.7,3697.5,2.70452694]
[1754548939065,0.4491,3697.7,3697.4,3.17849895]
[1754548939265,0.4491,3697.6,3697.4,3.17849895]
[1754548939464,0.948075,3697.9,3697.5,2.70453008]
[1754548939664,0.948075,3697.9,3697.6,2.70441359]
[1754548940065,0.948075,3697.9,3697.7,0.4739]
[1754548940266,0.948075,3697.9,3697.7,3.17827864]
[1754548940651,0.1352,3697.9,3697.8,3.15931067]
[1754548940852,4.109,3698.3,3697.8,3.15931067]
[1754548941058,0.948089,3698.1,3697.9,0.455]
[1754548941261,0.948089,3698.1,3697.7,0.455]
[1754548941552,0.948089,3698.1,3697.7,2.70437103]
[1754548941553,1.411389,3698.1,3697.7,2.70437103]
[1754548941733,1.411389,3698.1,3697.8,0.455]
[1754548942531,0.1352,3698.1,3697.8,2.70429212]
[1754548942744,0.1352,3698.1,3697.9,0.455]
[1754548942967,0.1352,3698.1,3697.9,3.15922147]
[1754548943163,0.1352,3698.1,3698.0,0.455]
[1754548944679,0.1352,3698.1,3697.8,2.70430944]
[1754548944888,1.2262605,3698.1,3697.8,0.455]
[1754548945071,0.1352,3698.1,3697.7,2.70437142]
[1754548945270,0.4633,3698.0,3697.7,2.70437142]
[1754548945472,0.4633,3698.0,3697.7,3.15937142]
[1754548945783,0.4633,3698.0,3697.7,0.455]
[1754548946282,0.4633,3698.0,3697.7,3.15935885]
[1754548946787,0.948075,3698.1,3697.9,2.7042146]
[1754548946989,0.948075,3698.1,3697.5,0.1352]
[1754548946990,0.948075,3698.1,3698.0,3.63176441]
[1754548947288,0.812875,3698.1,3698.0,3.63176441]
[1754548947592,0.812875,3698.1,3698.0,0.9276]
[1754548948084,0.812875,3698.1,3698.0,3.15916441]
[1754548948286,0.812875,3698.1,3698.0,3.63176441]
[1754548953377,0.812875,3698.1,3698.0,3.15916441]
[1754548955878,3.0,3698.4,3698.1,2.7040891]
[1754548956081,0.8128,3698.2,3698.1,2.7040891]
[1754548956401,3.0,3698.4,3698.2,2.70399668]
[1754548956587,0.812789,3698.3,3698.2,3.17659668]
[1754548956901,0.812789,3698.3,3698.2,2.70399668]
[1754548957317,0.812789,3698.3,3698.2,3.15899668]
[1754548957527,0.812789,3698.3,3698.2,3.63159668]
[1754548958911,0.812789,3698.3,3698.2,0.455]
[1754548959087,0.1352,3698.5,3698.2,0.455]
[1754548959282,0.1352,3698.5,3698.2,3.1589939]
[1754548959500,0.812789,3698.4,3698.2,0.455]
[1754548960214,0.812789,3698.4,3698.2,3.15901257]
[1754548960809,0.812789,3698.4,3698.2,0.455]
[1754548961611,1.276089,3698.4,3698.2,0.455]
[1754548962607,1.276089,3698.4,3698.1,2.70402604]
[1754548962905,0.4633,3698.3,3698.0,2.70415894]
[1754548963208,0.4633,3698.3,3698.1,3.15908053]
[1754548963370,0.812789,3698.4,3698.1,2.70408053]
[1754548963567,0.812789,3698.4,3698.1,3.15908053]
[1754548963786,1.276089,3698.4,3698.1,3.15908053]
[1754548964592,1.276089,3698.4,3698.2,0.455]
[1754548965098,0.812789,3698.4,3698.1,2.70408053]
[1754548965293,1.276089,3698.4,3698.0,2.70415335]
[1754548965520,1.276089,3698.4,3698.1,0.455]
[1754548967680,1.276089,3698.4,3698.1,3.1590838]
[1754548968433,1.276089,3698.4,3698.1,0.455]
[1754548968715,1.276089,3698.4,3697.9,0.1362]
[1754548968716,1.3926879,3698.4,3697.9,0.1362]
[1754548968884,0.1352,3698.2,3697.9,0.001]
[1754548969086,4.107,3698.1,3697.9,0.001]
[1754548969397,4.5703,3698.1,3697.9,0.456]
[1754548969831,4.107,3698.1,3697.9,0.001]
[1754548970000,0.9968748,3698.0,3697.9,0.001]
[1754548970319,1.4127748,3698.0,3697.9,0.001]
[1754548970490,3.65363921,3698.0,3697.9,0.001]
[1754548970694,7.09163921,3698.0,3697.9,0.001]
[1754548972313,7.7747748,3698.0,3697.9,0.001]
[1754548972504,7.2412,3698.0,3697.9,0.489]
[1754548973404,7.2412,3698.0,3697.9,0.001]
[1754548973760,7.6792,3698.0,3697.9,0.001]
[1754548974218,7.2422,3698.0,3697.9,0.489]
[1754548974404,8.10874318,3698.0,3697.9,0.489]
[1754548976047,8.10774318,3698.0,3697.9,0.489]
[1754548976202,8.10774318,3698.0,3697.9,0.001]
[1754548976409,8.54574318,3698.0,3697.9,0.001]
[1754548977344,8.10774318,3698.0,3697.9,0.489]
[1754548977814,8.10774318,3698.0,3697.9,0.001]
[1754548978943,8.10774318,3698.0,3697.9,0.489]
[1754548980658,4.00174318,3698.0,3697.9,0.489]
[1754548980948,7.2412,3698.0,3697.9,0.9351]
[1754548981248,7.2412,3698.0,3697.9,0.489]
[1754548984033,7.2412,3698.0,3697.9,0.001]
[1754548986553,7.6792,3698.0,3697.9,0.001]